bitfinex-derivatives/quotes_BTCF0:USTF0_20251219
["timestamp","ask_amount","ask_price","bid_price","bid_amount"]
[1766173677141,0.0113607,88072.0,88049.0,0.22622139]
[1766173677336,0.0036,88073.0,88048.0,0.00572]
[1766173677541,0.0036,88073.0,88050.0,0.22622139]
[1766173677749,0.22622139,88070.0,88048.0,0.00572]
[1766173678242,0.23758229,88070.0,88048.0,0.00572]
[1766173678447,0.0113612,88067.0,88050.0,0.00017032]
[1766173679048,0.00016963,88068.0,88050.0,0.22639171]
[1766173679243,0.0113612,88067.0,88050.0,0.22639171]
[1766173679443,0.0113612,88067.0,88051.0,0.00572]
[1766173680151,0.00016963,88068.0,88051.0,0.00572]
[1766173681240,0.0113608,88070.0,88051.0,0.00572]
[1766173681442,0.0036,88073.0,88051.0,0.00572]
[1766173681648,0.0149604,88073.0,88050.0,0.22639171]
[1766173681854,0.0113609,88069.0,88051.0,0.00572]
[1766173682449,0.0113614,88066.0,88051.0,0.00572]
[1766173682749,0.22622139,88070.0,88051.0,0.00572]
[1766173682750,0.0113618,88063.0,88051.0,0.00572]
[1766173682957,0.22622139,88070.0,88050.0,0.00292002]
[1766173683455,0.0113614,88066.0,88050.0,0.22914141]
[1766173683957,0.0113619,88062.0,88050.0,0.00292002]
[1766173684349,0.0001703,88067.0,88050.0,2e-08]
[1766173684350,0.0113622,88059.0,88050.0,2e-08]
[1766173685352,0.0113643,88044.0,88017.0,0.0113676]
[1766173685556,0.0113643,88044.0,88030.0,0.22622139]
[1766173685856,0.0113643,88044.0,88031.0,0.0036]
[1766173686858,0.00017032,88046.0,88031.0,0.0036]
[1766173687056,0.00017032,88046.0,88030.0,0.22622139]
[1766173687251,0.00017032,88046.0,88031.0,0.00184]
[1766173687557,0.22622139,88040.0,88022.0,0.00572]
[1766173687763,0.0113658,88032.0,88010.0,0.22622139]
[1766173688059,0.0113652,88036.0,88020.0,0.22622139]
[1766173688254,0.0113652,88036.0,88020.0,0.23194139]
[1766173688648,0.01153542,88037.0,88020.0,0.23194139]
[1766173689048,0.01153542,88037.0,88020.0,0.00572]
[1766173689252,0.00017032,88037.0,88020.0,0.23194139]
[1766173689448,0.00017032,88037.0,88020.0,0.00572]
[1766173691263,0.0113652,88036.0,88020.0,0.00572]
[1766173691662,0.00017032,88037.0,88020.0,0.00572]
[1766173695059,3.2e-07,88037.0,88020.0,0.00572]
[1766173698156,0.0113652,88036.0,88020.0,0.00572]
[1766173698754,3.2e-07,88037.0,88020.0,0.00572]
[1766173699258,0.01136542,88037.0,88020.0,0.00572]
[1766173702269,0.0113655,88034.0,88020.0,0.00572]
[1766173702573,3.2e-07,88037.0,88020.0,0.00572]
[1766173702774,0.0113652,88036.0,88020.0,0.00572]
[1766173703461,3.2e-07,88037.0,88019.0,0.00017032]
[1766173704066,0.0113662,88029.0,88019.0,0.00017032]
[1766173704372,0.00564,88035.0,88019.0,0.00017032]
[1766173705569,0.0113655,88034.0,88019.0,0.00017032]
[1766173705870,0.00564,88035.0,88019.0,0.00017032]
[1766173706073,3.2e-07,88037.0,88019.0,0.00017032]
[1766173706269,0.0113579,88093.0,88019.0,0.00017032]
[1766173706270,0.0113624,88058.0,88020.0,0.52800806]
[1766173706467,0.00572,88057.0,88020.0,0.52800806]
[1766173707177,0.00017032,88047.0,88030.0,0.00017032]
[1766173707471,0.00017032,88047.0,88031.0,0.00572]
[1766173708064,0.01153412,88047.0,88031.0,0.00572]
[1766173708369,0.0113644,88042.0,88032.0,0.00572]
[1766173708562,0.0113644,88042.0,88030.0,0.00017032]
[1766173708764,0.00017032,88047.0,88010.0,0.0113685]
[1766173708959,0.0113648,88040.0,88013.0,0.0113681]
[1766173709171,0.00017032,88047.0,88014.0,0.0004]
[1766173709473,0.00017032,88047.0,88030.0,0.22597778]
[1766173709974,0.00017032,88047.0,88030.0,0.2261481]
[1766173710165,3.2e-07,88047.0,88030.0,0.2261481]
[1766173710968,3.2e-07,88047.0,88031.0,0.0113657]
[1766173711370,3.2e-07,88047.0,88030.0,0.00017032]
[1766173711574,3.2e-07,88047.0,88030.0,0.2261481]
[1766173711974,3.2e-07,88047.0,88030.0,0.2375139]
[1766173712169,3.2e-07,88047.0,88030.0,0.01153612]
[1766173712375,3.2e-07,88047.0,88030.0,0.2375139]
[1766173713773,3.2e-07,88047.0,88030.0,0.01153612]
[1766173714081,3.2e-07,88047.0,88030.0,0.2375139]
[1766173714681,3.2e-07,88047.0,88030.0,0.2261481]
[1766173716282,0.0113624,88058.0,88037.0,0.22597778]
[1766173716466,0.0113624,88058.0,88038.0,0.00572]
[1766173717276,0.0113618,88063.0,88038.0,0.00572]
[1766173717485,0.00017032,88059.0,88042.0,0.00017032]
[1766173719088,0.0113624,88058.0,88042.0,0.00017032]
[1766173719279,0.00017032,88059.0,88042.0,0.00017032]
[1766173719280,0.0113632,88052.0,88042.0,0.00017032]
[1766173719584,0.0113632,88052.0,88023.0,0.0113668]
[1766173719786,0.0113632,88052.0,88024.0,0.00572]
[1766173719969,0.00572,88058.0,88030.0,0.22597778]
[1766173720174,0.0113627,88056.0,88031.0,0.00572]
[1766173720377,0.0113631,88053.0,88035.0,0.00017032]
[1766173720575,0.00572,88058.0,88035.0,0.00017032]
[1766173720783,0.0113638,88047.0,88035.0,0.00017032]
[1766173720978,0.0113633,88051.0,88035.0,0.00017032]
[1766173721180,0.00572,88058.0,88020.0,0.22597778]
[1766173721377,0.0113642,88044.0,88021.0,0.00572]
[1766173722188,0.0113642,88044.0,88020.0,0.22597778]
[1766173722383,0.00017032,88041.0,88024.0,0.00017032]
[1766173723087,0.011368,88015.0,87998.0,1.44928]
[1766173723381,0.011368,88015.0,87996.0,0.00013974]
[1766173723382,0.0170873,88020.0,87999.0,0.00572]
[1766173723587,0.0113679,88015.0,87999.0,0.00572]
[1766173723884,0.00017044,88016.0,87998.0,0.00017044]
[1766173724089,0.0113699,88000.0,87973.0,1.44928]
[1766173724390,0.22597778,88010.0,87973.0,1.44928]
[1766173724391,0.0113698,88001.0,87974.0,0.00572]
[1766173725072,0.00088,88002.0,87978.0,0.0113727]
[1766173725385,0.00017044,87996.0,87979.0,0.00017044]
[1766173725588,0.00017044,87996.0,87980.0,0.0170923]
[1766173726290,0.06120127,88043.0,87983.0,0.0568603]
[1766173726588,0.0116026,88056.0,88025.0,0.0113666]
[1766173726784,0.0116027,88056.0,88026.0,0.00572]
[1766173727084,0.0116027,88056.0,88036.0,0.0113651]
[1766173727085,0.00024,88056.0,88036.0,0.0113651]
[1766173727280,0.0113612,88068.0,88026.0,0.00572]
[1766173727281,0.00017044,88055.0,88037.0,0.00017044]
[1766173727486,1.44948,88070.0,88033.0,0.0036]
[1766173727675,0.00017034,88055.0,88037.0,0.00017034]
[1766173729481,0.00164,88054.0,88037.0,0.00017034]
[1766173732087,0.0113631,88053.0,88037.0,3.4e-07]
[1766173732288,0.00164,88054.0,88037.0,3.4e-07]
[1766173735396,0.0113631,88053.0,88037.0,3.4e-07]
[1766173735697,0.00164,88054.0,88037.0,3.4e-07]
[1766173736091,0.0113635,88050.0,88037.0,3.4e-07]
[1766173736289,0.0113636,88049.0,88037.0,3.4e-07]
[1766173736598,0.00164,88054.0,88037.0,3.4e-07]
[1766173736896,0.0113635,88050.0,88037.0,3.4e-07]
[1766173737597,0.01153314,88055.0,88037.0,3.4e-07]
[1766173737987,1.45424,88054.0,88037.0,3.4e-07]
[1766173738188,0.0113631,88053.0,88037.0,3.4e-07]
[1766173738395,0.0113636,88049.0,88037.0,3.4e-07]
[1766173738589,0.00572,88048.0,88037.0,3.4e-07]
[1766173738791,0.0113647,88040.0,88037.0,3.4e-07]
[1766173739189,0.0113671,88022.0,87997.0,0.0113702]
[1766173739499,0.00572,88021.0,88005.0,0.0113692]
[1766173739797,0.0036,88020.0,88005.0,0.0113692]
[1766173740590,0.00017044,88021.0,88004.0,0.00017044]
[1766173740789,4e-08,88021.0,88009.0,0.0113685]
[1766173741300,4e-08,88021.0,88005.0,0.0113692]
[1766173741902,4e-08,88021.0,88009.0,0.0113686]
[1766173742099,4e-08,88021.0,88004.0,0.00017044]
[1766173742409,0.011365,88038.0,88008.0,0.0113688]
[1766173742591,0.0036,88037.0,88011.0,0.0113683]
[1766173742791,0.0036,88037.0,88014.0,0.011368]
[1766173743093,1.4494,88060.0,88023.0,0.0113668]
[1766173743401,1.4494,88060.0,88020.0,0.41477183]
[1766173743402,0.00017044,88050.0,88033.0,0.00017044]
[1766173743698,0.00572,88049.0,88033.0,0.00017044]
[1766173744801,0.0113641,88045.0,88021.0,0.0113671]
[1766173745000,0.0113645,88042.0,88019.0,0.0036]
[1766173745699,0.00572,88049.0,88024.0,0.0113667]
[1766173745891,0.00572,88049.0,88028.0,0.00017044]
[1766173746402,0.0113637,88048.0,88028.0,0.00017044]
[1766173746701,0.00572,88049.0,88028.0,0.00017044]
[1766173747089,0.0113637,88048.0,88028.0,0.00017044]
[1766173747296,0.00572,88049.0,88028.0,0.00017044]
[1766173748501,0.00572,88049.0,88029.0,0.0113661]
[1766173749303,0.00017044,88050.0,88029.0,0.0113661]
[1766173749502,0.00548,88049.0,88032.0,0.0113657]
[1766173749706,0.00548,88049.0,88028.0,0.01153664]
[1766173750200,0.0054,88048.0,88034.0,0.0113654]
[1766173750504,0.0054,88048.0,88037.0,0.011365]
[1766173750705,0.00017044,88050.0,88037.0,0.011365]
[1766173751606,0.00017044,88050.0,88040.0,0.0113646]
[1766173753110,4e-08,88050.0,88030.0,0.00564]
[1766173753304,0.00540837,88051.0,88040.0,0.0113646]
[1766173754505,0.00017044,88054.0,88040.0,0.0113646]
[1766173754715,4.4e-07,88054.0,88040.0,0.29377597]
[1766173755121,4.4e-07,88054.0,88040.0,0.28241137]
[1766173755319,4.4e-07,88054.0,88041.0,0.0113645]
[1766173757311,4.4e-07,88054.0,88044.0,0.0113641]
[1766173757512,4.4e-07,88054.0,88047.0,0.0113637]
[1766173760419,4.4e-07,88054.0,88038.0,0.00572]
[1766173760719,4.4e-07,88054.0,88045.0,0.011364]
[1766173760918,4.4e-07,88054.0,88046.0,0.0113638]
[1766173762118,4.4e-07,88054.0,88042.0,0.0113643]
[1766173762319,4.4e-07,88054.0,88038.0,0.00572]
[1766173762816,4.4e-07,88054.0,88038.0,0.0170849]
[1766173763530,4.4e-07,88054.0,88043.0,0.0113642]
[1766173764328,4.4e-07,88054.0,88038.0,0.00572]
[1766173765025,4.4e-07,88054.0,88039.0,0.0113647]
[1766173765611,4.4e-07,88054.0,88038.0,0.00572]
[1766173765916,4.4e-07,88054.0,88039.0,0.0113648]
[1766173767411,4.4e-07,88054.0,88039.0,0.0113647]
[1766173768320,4.4e-07,88054.0,88042.0,0.0113644]
[1766173768716,4.4e-07,88054.0,88038.0,0.0170849]
[1766173770111,4.4e-07,88054.0,88041.0,0.0113645]
[1766173771428,4.4e-07,88054.0,88038.0,0.00572]
[1766173772328,4.4e-07,88054.0,88039.0,0.0113647]
[1766173772730,4.4e-07,88054.0,88042.0,0.0113644]
[1766173773128,4.4e-07,88054.0,88045.0,0.0113639]
[1766173773830,4.4e-07,88054.0,88038.0,0.0170849]
[1766173775828,4.4e-07,88054.0,88046.0,0.0113639]
[1766173777228,4.4e-07,88054.0,88040.0,0.28240394]
[1766173777436,4.4e-07,88054.0,88044.0,0.22589522]
[1766173777734,4.4e-07,88054.0,88053.0,0.011363]
[1766173779034,4.4e-07,88054.0,88044.0,0.22589522]
[1766173779232,4.4e-07,88054.0,88049.0,0.0113634]
[1766173779619,4.4e-07,88054.0,88053.0,0.011363]
[1766173780026,1.44912,88085.0,88057.0,0.0113624]
[1766173780226,0.22589522,88080.0,88060.0,0.22589522]
[1766173780428,0.00572,88079.0,88060.0,0.22589522]
[1766173780932,0.0113604,88074.0,88061.0,0.00017033]
[1766173781131,0.22589522,88071.0,88046.0,0.0113638]
[1766173781432,0.0113604,88074.0,88049.0,0.0113634]
[1766173782230,0.00017033,88070.0,88053.0,0.00017033]
[1766173782426,0.0054,88069.0,88053.0,0.00017033]
[1766173782828,0.0113611,88068.0,88053.0,0.00017033]
[1766173784141,0.0054,88069.0,88053.0,0.00017033]
[1766173785036,0.0054,88069.0,88054.0,0.0113629]
[1766173785339,0.0054,88069.0,88053.0,0.00017033]
[1766173785642,3.3e-07,88071.0,88058.0,0.0113623]
[1766173786342,3.3e-07,88071.0,88053.0,0.00017033]
[1766173786343,3.3e-07,88071.0,88057.0,0.0113624]
[1766173788941,3.3e-07,88071.0,88054.0,0.0113628]
[1766173789644,0.00017033,88073.0,88054.0,0.0113628]
[1766173789944,0.00177033,88073.0,88054.0,0.0113628]
[1766173791039,0.00017033,88073.0,88054.0,0.0113628]
[1766173791241,0.00017033,88073.0,88053.0,0.00017033]
[1766173791543,0.00017033,88073.0,88059.0,0.0113622]
[1766173792228,0.00017033,88073.0,88053.0,0.00017033]
[1766173793847,0.00017033,88073.0,88057.0,0.0113624]
[1766173794237,0.00017033,88073.0,88060.0,0.011362]
[1766173794551,0.00017033,88073.0,88056.0,0.0113625]
[1766173795130,3.3e-07,88073.0,88060.0,0.28238629]
[1766173795337,3.3e-07,88073.0,88058.0,0.0113622]
[1766173795846,3.3e-07,88073.0,88060.0,0.011362]
[1766173796241,3.3e-07,88073.0,88063.0,0.0113616]
[1766173796944,3.3e-07,88073.0,88059.0,0.0170821]
[1766173798136,3.3e-07,88073.0,88062.0,0.0113618]
[1766173798847,3.3e-07,88073.0,88061.0,0.0113619]
[1766173799148,3.3e-07,88073.0,88053.0,0.00017033]
[1766173799343,3.3e-07,88073.0,88054.0,0.00572]
[1766173800238,3.3e-07,88073.0,88054.0,0.0170828]
[1766173800438,3.3e-07,88073.0,88058.0,0.0113623]
[1766173800835,3.3e-07,88073.0,88053.0,0.00017033]
[1766173801238,3.3e-07,88073.0,88054.0,0.00572]
[1766173801434,3.3e-07,88073.0,88053.0,0.00017033]
[1766173801739,3.3e-07,88073.0,88060.0,0.22583862]
[1766173802547,0.01136073,88073.0,88060.0,0.22583862]
[1766173802739,0.0113609,88069.0,88053.0,0.00017033]
[1766173803044,0.0170809,88069.0,88053.0,0.00017033]
[1766173804249,0.00572,88069.0,88053.0,0.00017033]
[1766173806038,0.00572,88069.0,88053.0,3.3e-07]
[1766173806247,0.00572,88069.0,88003.0,0.0113694]
[1766173806248,0.22583862,88050.0,88025.0,0.08012563]
[1766173806450,0.22583862,88050.0,88003.0,0.0113694]
[1766173806451,0.22583862,88040.0,88017.0,0.0113676]
[1766173806754,0.00572,88039.0,88021.0,0.011367]
[1766173807048,0.00572,88038.0,88020.0,0.22583862]
[1766173807248,0.00244,88045.0,88034.0,0.0113654]
[1766173807452,0.0012,88050.0,88034.0,0.0113654]
[1766173808044,0.0012,88050.0,88030.0,0.28240445]
[1766173808241,0.00017033,88049.0,88031.0,0.00017033]
[1766173809654,1.449,88075.0,88042.0,0.0113644]
[1766173809854,0.0113613,88067.0,88039.0,0.28812445]
[1766173810154,0.0113607,88071.0,88044.0,0.0113641]
[1766173810654,0.00017033,88066.0,88049.0,0.00017033]
[1766173810853,0.0113615,88065.0,88049.0,0.00017033]
[1766173811041,0.00572,88064.0,88049.0,0.00017033]
[1766173811239,0.0113627,88056.0,88030.0,0.28240445]
[1766173811443,0.0113621,88060.0,88036.0,0.00088]
[1766173812249,0.0113621,88060.0,88039.0,0.00017033]
[1766173812652,0.00572,88064.0,88039.0,0.00017033]
[1766173812950,0.0113628,88055.0,88039.0,3.3e-07]
[1766173813148,0.00572,88054.0,88039.0,3.3e-07]
[1766173814052,0.011363,88053.0,88039.0,3.3e-07]
[1766173814556,0.00572,88054.0,88039.0,3.3e-07]
[1766173815150,0.00017033,88066.0,88039.0,3.3e-07]
[1766173815458,0.00017033,88066.0,88056.0,0.0113625]
[1766173815850,0.00017033,88066.0,88052.0,0.0113631]
[1766173816352,0.00017033,88066.0,88047.0,0.00564]
[1766173816658,0.00017033,88066.0,88048.0,0.0113636]
[1766173817257,0.00017033,88066.0,88047.0,0.00564]
[1766173817457,0.00017033,88066.0,88050.0,0.0113633]
[1766173818162,0.00017033,88066.0,88047.0,0.00564]
[1766173819458,0.00017033,88066.0,88048.0,0.0113636]
[1766173819644,0.00017033,88066.0,88052.0,0.0113631]
[1766173819859,3.3e-07,88066.0,88051.0,0.0113632]
[1766173820958,3.3e-07,88066.0,88054.0,0.0113628]
[1766173821159,3.3e-07,88066.0,88056.0,0.0113626]
[1766173821949,3.3e-07,88066.0,88055.0,0.0170827]
[1766173823265,3.3e-07,88066.0,88059.0,0.0113621]
[1766173823659,3.3e-07,88066.0,88055.0,0.00572]
[1766173823660,0.06109281,88115.0,88056.0,0.0113626]
[1766173823965,0.0113553,88113.0,88090.0,0.41403754]
[1766173824165,0.06115983,88120.0,88090.0,0.41403754]
[1766173824352,0.0113515,88143.0,88112.0,0.0113553]
[1766173824666,2.3e-07,88136.0,88120.0,0.41403754]
[1766173824961,0.0036,88140.0,88113.0,0.00572]
[1766173825161,0.0113495,88158.0,88113.0,0.00572]
[1766173825356,0.0113504,88151.0,88122.0,0.0113541]
[1766173825556,0.0113506,88149.0,88120.0,0.41403754]
[1766173825861,0.0113516,88142.0,88126.0,0.00017023]
[1766173826364,0.00572,88141.0,88126.0,0.00017023]
[1766173826957,0.00017012,88143.0,88126.0,0.00017023]
[1766173827158,0.00572,88142.0,88126.0,0.00017023]
[1766173829168,0.00017012,88143.0,88126.0,0.00017023]
[1766173829370,0.00452,88142.0,88126.0,0.00017023]
[1766173830674,0.0113523,88137.0,88113.0,0.00572]
[1766173830870,0.0113528,88133.0,88103.0,0.0113565]
[1766173831064,0.00508,88132.0,88103.0,0.0170765]
[1766173831265,0.06094143,88183.0,88122.0,0.41403754]
[1766173831462,0.06094143,88183.0,88104.0,0.23455414]
[1766173831463,0.0113483,88168.0,88138.0,0.011352]
[1766173831875,0.00364,88167.0,88146.0,0.0113509]
[1766173832169,0.41403754,88200.0,88134.0,0.11343977]
[1766173832364,0.0113474,88174.0,88142.0,0.0113514]
[1766173832565,0.0113478,88171.0,88142.0,0.0113514]
[1766173832767,0.0113478,88171.0,88140.0,0.41403754]
[1766173832961,0.00368,88173.0,88133.0,0.00572]
[1766173832962,0.0113489,88163.0,88133.0,0.00572]
[1766173833166,0.0113497,88157.0,88133.0,0.00572]
[1766173833367,0.0048,88162.0,88136.0,0.00017013]
[1766173833368,0.0113503,88152.0,88136.0,0.00017013]
[1766173833668,0.00516,88151.0,88135.0,0.00017013]
[1766173834164,0.0113506,88150.0,88135.0,0.00017013]
[1766173835173,0.00516,88151.0,88135.0,0.00017013]
[1766173835367,0.0113505,88150.0,88135.0,0.00017013]
[1766173836575,0.0113522,88137.0,88110.0,1.44828]
[1766173836774,0.0113522,88137.0,88090.0,0.01156546]
[1766173836775,0.00572,88136.0,88106.0,0.00572]
[1766173836974,0.00572,88136.0,88109.0,0.0113558]
[1766173837174,0.0113524,88135.0,88106.0,0.00572]
[1766173837379,0.0113524,88135.0,88107.0,0.011356]
[1766173837673,0.00017023,88130.0,88112.0,0.00017023]
[1766173838478,0.0113533,88129.0,88112.0,0.00017023]
[1766173841279,0.0113533,88129.0,88098.0,0.00092]
[1766173841280,0.0113559,88108.0,88088.0,0.00010386]
[1766173841479,0.41420777,88130.0,88088.0,0.00010386]
[1766173841480,0.0113562,88106.0,88088.0,0.00010386]
[1766173841784,0.0113567,88103.0,88088.0,0.00010386]
[1766173842685,0.0113571,88099.0,88072.0,0.0113605]
[1766173842984,0.00572,88098.0,88072.0,0.0113605]
[1766173843182,0.00572,88098.0,88076.0,0.01136]
[1766173843582,0.00012615,88097.0,88079.0,0.0113596]
[1766173843884,0.0113575,88096.0,88050.0,0.41403754]
[1766173844182,0.0113575,88096.0,88052.0,1.44804]
[1766173844584,0.0113575,88096.0,88071.0,0.0113607]
[1766173844979,0.00017023,88092.0,88075.0,0.00011369]
[1766173847984,0.00017023,88092.0,88034.0,0.0794169]
[1766173847985,0.0113598,88078.0,88032.0,0.0794169]
[1766173848186,0.0113611,88068.0,88039.0,0.0113648]
[1766173848372,0.00372474,88077.0,88028.0,0.0113662]
[1766173848373,1.45184,88067.0,88028.0,0.0113662]
[1766173848579,1.4482,88066.0,88023.0,0.0113668]
[1766173848884,0.41391708,88060.0,88013.0,0.0113681]
[1766173849073,0.0113653,88036.0,87990.0,0.41391708]
[1766173849275,0.0113676,88018.0,87987.0,0.0113715]
[1766173849474,1.45025043,88017.0,87987.0,0.0113715]
[1766173849687,1.45970524,88016.0,87981.0,0.0113722]
[1766173849987,0.0113694,88004.0,87969.0,0.0113737]
[1766173850188,0.00017043,87995.0,87963.0,0.01149287]
[1766173850386,0.0001123,87994.0,87963.0,0.01149287]
[1766173850583,0.00372,87993.0,87963.0,0.01149287]
[1766173850791,0.00372,87993.0,87966.0,0.0113742]
[1766173850977,0.0001123,87994.0,87966.0,0.0113742]
[1766173851178,0.00572,87993.0,87966.0,0.0113742]
[1766173851488,0.00572,87993.0,87963.0,0.00011837]
[1766173851690,0.00572,87993.0,87964.0,0.0113745]
[1766173853985,0.00572,87993.0,87963.0,0.00011837]
[1766173854386,0.0113709,87992.0,87963.0,0.00011837]
[1766173855186,1.45476,87991.0,87963.0,0.01149297]
[1766173855593,1.45476,87991.0,87963.0,0.00011837]
[1766173855890,0.0113712,87990.0,87963.0,0.00011837]
[1766173856482,0.0113712,87990.0,87933.0,1.44916]
[1766173856483,0.0113726,87979.0,87933.0,1.44916]
[1766173856791,0.0113726,87979.0,87916.0,0.0113806]
[1766173856792,0.00017053,87965.0,87931.0,0.23371502]
[1766173857088,0.00572,87964.0,87929.0,0.00572]
[1766173857594,9.434e-05,87963.0,87939.0,0.0113776]
[1766173859091,9.434e-05,87963.0,87929.0,0.00572]
[1766173859292,9.434e-05,87963.0,87920.0,0.0113801]
[1766173859293,0.0113754,87958.0,87920.0,0.0113801]
[1766173859497,0.0113754,87958.0,87910.0,9.775e-05]
[1766173859498,0.00017053,87948.0,87913.0,0.011381]
[1766173859692,1.4666167,87947.0,87910.0,9.775e-05]
[1766173860196,1.4666167,87947.0,87911.0,0.0113813]
[1766173860399,0.0113775,87941.0,87910.0,9.775e-05]
[1766173860587,0.00381385,87940.0,87917.0,0.0113805]
[1766173860898,0.00572,87939.0,87917.0,0.0113805]
[1766173861096,0.0170978,87939.0,87910.0,9.775e-05]
[1766173861588,0.0113778,87939.0,87910.0,9.775e-05]
[1766173861790,0.011378,87937.0,87910.0,9.775e-05]
[1766173861986,0.0113783,87935.0,87910.0,9.775e-05]
[1766173862594,1.4669781,87936.0,87910.0,9.775e-05]
[1766173862790,0.00013385,87940.0,87910.0,9.775e-05]
[1766173862990,1.45,87939.0,87918.0,0.0113804]
[1766173863299,0.00013385,87940.0,87912.0,0.0113811]
[1766173863506,0.00013385,87940.0,87910.0,0.41401483]
[1766173863507,5e-08,87940.0,87910.0,0.41401483]
[1766173863799,8e-08,87948.0,87935.0,0.0113782]
[1766173863984,8e-08,87948.0,87913.0,1.57918078]
[1766173863985,8e-08,87948.0,87926.0,0.00572]
[1766173864188,8e-08,87948.0,87945.0,0.0113769]
[1766173864502,8e-08,87948.0,87926.0,0.00572]
[1766173864799,0.00010276,87947.0,87931.0,0.113732]
[1766173865203,0.00010276,87947.0,87932.0,0.0113786]
[1766173865400,0.00010276,87947.0,87936.0,0.0113781]
[1766173865697,8e-08,87948.0,87936.0,0.0113781]
[1766173866089,8e-08,87948.0,87930.0,0.00017053]
[1766173866494,0.00180884,87947.0,87930.0,0.00017053]
[1766173866886,8.884e-05,87947.0,87930.0,0.00017053]
[1766173867096,0.01143703,88000.0,87930.0,0.00017053]
[1766173867097,1.45028,87965.0,87945.0,0.0113768]
[1766173867401,0.00572,87964.0,87934.0,0.0113783]
[1766173867994,0.00017053,87958.0,87940.0,0.00017053]
[1766173868391,0.00108,87957.0,87940.0,0.00017053]
[1766173868795,0.056848,88003.0,87940.0,0.00017053]
[1766173868796,1.4504,87977.0,87949.0,0.0113763]
[1766173868998,0.0113731,87975.0,87944.0,0.011377]
[1766173869203,0.0113733,87973.0,87944.0,0.011377]
[1766173869899,0.00017053,87967.0,87950.0,0.00017053]
[1766173870102,0.0018,87966.0,87950.0,0.00017053]
[1766173870296,0.00017053,87967.0,87950.0,0.00017053]
[1766173870503,0.00572,87965.0,87950.0,0.00017053]
[1766173872895,0.0046,87964.0,87950.0,0.00017053]
[1766173873095,0.00232,87963.0,87950.0,0.00017053]
[1766173873305,0.011373,87976.0,87950.0,0.00017053]
[1766173873607,0.0113733,87974.0,87950.0,0.00017053]
[1766173874109,0.00017053,87971.0,87950.0,0.00017053]
[1766173875610,0.0113715,87988.0,87961.0,0.0113748]
[1766173875798,0.00368,87987.0,87960.0,0.41391708]
[1766173875994,1.45052,88003.0,87973.0,0.0113733]
[1766173876300,0.0113702,87998.0,87961.0,0.11940739]
[1766173876496,0.0113702,87998.0,87968.0,0.011374]
[1766173876699,0.00017053,87992.0,87974.0,0.00017053]
[1766173876899,0.00368,87991.0,87974.0,0.00017053]
[1766173877109,0.00364,87991.0,87974.0,0.00017053]
[1766173877607,0.0150111,87991.0,87974.0,0.00017053]
[1766173878897,0.0113721,87983.0,87974.0,0.00017053]
[1766173879102,0.00572,87982.0,87961.0,0.00572]
[1766173879309,0.0113725,87980.0,87952.0,0.011376]
[1766173879602,0.00572,87982.0,87951.0,1.45604]
[1766173879805,0.00572,87982.0,87964.0,0.0113744]
[1766173880005,0.00017053,87982.0,87964.0,0.01154493]
[1766173880205,0.00108,87981.0,87964.0,0.01154493]
[1766173880709,0.00108,87981.0,87967.0,0.011374]
[1766173880898,0.00060053,87982.0,87969.0,0.0113738]
[1766173881098,0.00028,87982.0,87969.0,0.0113738]
[1766173881293,0.00012,87982.0,87969.0,0.0113738]
[1766173881701,0.00012,87982.0,87965.0,0.0113743]
[1766173882004,0.00029053,87982.0,87965.0,0.0113743]
[1766173882207,0.00029053,87982.0,87964.0,0.00017053]
[1766173882999,0.01166283,87982.0,87964.0,0.00017053]
[1766173883202,0.00029053,87982.0,87964.0,0.00017053]
[1766173883804,0.00029053,87982.0,87964.0,0.01154493]
[1766173884110,0.00017053,87982.0,87972.0,0.0113733]
[1766173884303,0.00017053,87982.0,87967.0,0.011374]
[1766173884504,0.00017053,87982.0,87964.0,0.00017053]
[1766173884711,0.00108,87981.0,87964.0,0.00017053]
[1766173885098,0.00108,87981.0,87965.0,0.0113744]
[1766173885705,0.00108,87981.0,87964.0,0.00017053]
[1766173886311,0.0113729,87977.0,87964.0,0.00017053]
[1766173886606,0.0124523,87981.0,87964.0,0.00017053]
[1766173887312,0.00108,87981.0,87964.0,0.00017053]
[1766173888809,0.011373,87976.0,87964.0,0.00017053]
[1766173889001,0.00108,87981.0,87964.0,0.00017053]
[1766173890406,0.00017053,87982.0,87964.0,0.00017053]
[1766173890606,0.00017053,87982.0,87965.0,0.0113743]
[1766173890812,0.00017053,87982.0,87968.0,0.0113739]
[1766173891111,0.28284153,87980.0,87930.0,0.0794169]
[1766173891302,0.28284153,87961.0,87914.0,0.01123988]
[1766173891502,0.0113753,87958.0,87914.0,0.00572]
[1766173891701,0.0113763,87951.0,87923.0,0.12505094]
[1766173891898,1.73324153,87961.0,87914.0,0.01720611]
[1766173891899,0.0113769,87946.0,87915.0,0.0113808]
[1766173892098,0.0113777,87939.0,87914.0,0.00572]
[1766173892305,0.0113786,87933.0,87922.0,5.3e-07]
[1766173892512,0.00368,87938.0,87913.0,0.08037391]
[1766173892513,0.00368,87938.0,87913.0,0.01199391]
[1766173892704,0.00368,87938.0,87913.0,3.91e-06]
[1766173893518,0.00368,87938.0,87917.0,0.00017053]
[1766173893911,0.0113795,87925.0,87897.0,0.011383]
[1766173894210,0.28284153,87920.0,87879.0,1.45052]
[1766173894408,0.0113813,87912.0,87885.0,0.0113847]
[1766173894708,0.068266,87940.0,87890.0,0.28284153]
[1766173894709,0.00368,87911.0,87890.0,0.28284153]
[1766173894897,0.00017064,87909.0,87892.0,0.01155444]
[1766173895105,6.4e-07,87909.0,87896.0,0.0113832]
[1766173895296,0.0113797,87925.0,87896.0,0.0113832]
[1766173895502,0.00572,87924.0,87896.0,0.0113832]
[1766173895706,0.00572,87923.0,87896.0,0.0113832]
[1766173896208,0.0113803,87920.0,87892.0,0.00017064]
[1766173896407,0.00017064,87915.0,87892.0,0.00017064]
[1766173896708,0.00388,87914.0,87892.0,0.00017064]
[1766173897407,0.0113811,87913.0,87892.0,0.00017064]
[1766173897610,0.00388,87914.0,87892.0,0.00017064]
[1766173898507,0.0113818,87908.0,87892.0,0.00017064]
[1766173898708,0.0113819,87907.0,87892.0,0.00017064]
[1766173898904,0.00572,87906.0,87892.0,0.00017064]
[1766173900309,9.064e-05,87915.0,87892.0,0.00017064]
[1766173900510,0.011381,87914.0,87892.0,0.00017064]
[1766173900713,0.0113814,87911.0,87892.0,0.00017064]
[1766173902210,0.00372,87913.0,87892.0,0.00017064]
[1766173903319,9.064e-05,87915.0,87892.0,0.00017064]
[1766173904311,0.00368,87914.0,87892.0,0.00017064]
[1766173904513,0.0113811,87913.0,87892.0,0.00017064]
[1766173904820,0.0113812,87913.0,87892.0,0.00017064]
[1766173905020,0.00368,87914.0,87892.0,0.00017064]
[1766173906823,0.0113811,87913.0,87892.0,0.00017064]
[1766173907318,0.00368,87914.0,87892.0,0.00017064]
[1766173907525,0.00368,87914.0,87882.0,0.00372]
[1766173907720,9.064e-05,87915.0,87880.0,0.28284153]
[1766173907928,9.064e-05,87915.0,87902.0,0.0113824]